[Event "*** Titled Tuesday Blitz"]
[Site "Chess.com"]
[Date "2020.11.03"]
[Round "10"]
[White "AryanTari"]
[Black "AndrewMaco"]
[Result "1/2-1/2"]
[WhiteElo "2876"]
[BlackElo "2682"]
[TimeControl "180+1"]
[EndTime "12:01:49 PST"]
[Termination "Game drawn by repetition"]

1. b3 {[%clk 0:03:00.9]} 1... d5 {[%clk 0:02:57.8]} 2. Bb2 {[%clk 0:03:01.3]}
2... c5 {[%clk 0:02:58.3]} 3. e3 {[%clk 0:03:00.8]} 3... a6 {[%clk 0:02:57.7]}
4. f4 {[%clk 0:02:58.1]} 4... Nc6 {[%clk 0:02:56.4]} 5. Nf3 {[%clk 0:02:58.7]}
5... f6 {[%clk 0:02:56.4]} 6. Be2 {[%clk 0:02:55.5]} 6... Nh6 {[%clk 0:02:56]}
7. O-O {[%clk 0:02:55]} 7... e6 {[%clk 0:02:56.5]} 8. c4 {[%clk 0:02:51.6]} 8...
d4 {[%clk 0:02:39.7]} 9. Qe1 {[%clk 0:02:44.9]} 9... Be7 {[%clk 0:02:32.7]} 10.
a3 {[%clk 0:02:44.7]} 10... a5 {[%clk 0:02:28.6]} 11. exd4 {[%clk 0:02:07.7]}
11... cxd4 {[%clk 0:02:26.9]} 12. Bd3 {[%clk 0:02:04.9]} 12... O-O {[%clk
0:02:22.4]} 13. Be4 {[%clk 0:01:57.5]} 13... Bc5 {[%clk 0:01:53.9]} 14. d3
{[%clk 0:01:57.7]} 14... Ng4 {[%clk 0:01:35]} 15. Nbd2 {[%clk 0:01:35.6]} 15...
Ne3 {[%clk 0:01:29.3]} 16. Rf2 {[%clk 0:01:35.7]} 16... Nc2 {[%clk 0:01:27.4]}
17. Qd1 {[%clk 0:01:29.3]} 17... Nxa1 {[%clk 0:01:27.7]} 18. Qxa1 {[%clk
0:01:30.2]} 18... Bd7 {[%clk 0:01:25]} 19. Bxc6 {[%clk 0:01:24.6]} 19... Bxc6
{[%clk 0:01:24.4]} 20. Bxd4 {[%clk 0:01:20.5]} 20... Bxd4 {[%clk 0:01:19.3]} 21.
Nxd4 {[%clk 0:01:21.4]} 21... Re8 {[%clk 0:01:15]} 22. Ne4 {[%clk 0:00:51]}
22... Bxe4 {[%clk 0:01:07.6]} 23. dxe4 {[%clk 0:00:51.9]} 23... Qb6 {[%clk
0:01:08.2]} 24. Qc3 {[%clk 0:00:51.7]} 24... e5 {[%clk 0:01:03.5]} 25. Nf5
{[%clk 0:00:38.3]} 25... exf4 {[%clk 0:00:57.1]} 26. c5 {[%clk 0:00:38.7]} 26...
Qe6 {[%clk 0:00:47.6]} 27. Rxf4 {[%clk 0:00:37]} 27... Rac8 {[%clk 0:00:41.2]}
28. Qg3 {[%clk 0:00:32.1]} 28... Qd7 {[%clk 0:00:21.3]} 29. Nxg7 {[%clk
0:00:22.3]} 29... Qxg7 {[%clk 0:00:12.7]} 30. Rg4 {[%clk 0:00:22.6]} 30... Qxg4
{[%clk 0:00:13.2]} 31. Qxg4+ {[%clk 0:00:23.5]} 31... Kh8 {[%clk 0:00:12.2]} 32.
Qf5 {[%clk 0:00:21]} 32... Rc6 {[%clk 0:00:09.8]} 33. b4 {[%clk 0:00:21.3]}
33... axb4 {[%clk 0:00:09.8]} 34. axb4 {[%clk 0:00:22.2]} 34... Rce6 {[%clk
0:00:10.3]} 35. h3 {[%clk 0:00:20.5]} 35... Kg7 {[%clk 0:00:10.5]} 36. Qd5
{[%clk 0:00:20.4]} 36... R8e7 {[%clk 0:00:10.4]} 37. b5 {[%clk 0:00:16.4]} 37...
Rxe4 {[%clk 0:00:09.3]} 38. Kh2 {[%clk 0:00:17.1]} 38... R4e5 {[%clk 0:00:09.1]}
39. Qd6 {[%clk 0:00:17]} 39... R5e6 {[%clk 0:00:09.6]} 40. Qb8 {[%clk
0:00:16.3]} 40... h5 {[%clk 0:00:08.7]} 41. Qg3+ {[%clk 0:00:15.5]} 41... Kf7
{[%clk 0:00:08.8]} 42. Qb3 {[%clk 0:00:12.9]} 42... Kg6 {[%clk 0:00:08.8]} 43.
Qd3+ {[%clk 0:00:12.5]} 43... Kg7 {[%clk 0:00:08.6]} 44. Qg3+ {[%clk 0:00:05.8]}
44... Kf7 {[%clk 0:00:08.9]} 45. Qf3 {[%clk 0:00:05.9]} 45... Re5 {[%clk
0:00:08.2]} 46. Qb3+ {[%clk 0:00:06.2]} 46... Kg7 {[%clk 0:00:08.4]} 47. Qb4
{[%clk 0:00:06]} 47... Rc7 {[%clk 0:00:07.4]} 48. c6 {[%clk 0:00:05]} 48... bxc6
{[%clk 0:00:07.9]} 49. Qd6 {[%clk 0:00:05.7]} 49... Ree7 {[%clk 0:00:06.1]} 50.
b6 {[%clk 0:00:04.2]} 50... Rb7 {[%clk 0:00:06.1]} 51. Qxc6 {[%clk 0:00:04.9]}
51... Red7 {[%clk 0:00:06.1]} 52. Kg3 {[%clk 0:00:05]} 52... Kg6 {[%clk
0:00:05.5]} 53. Qc2+ {[%clk 0:00:04.2]} 53... Kh6 {[%clk 0:00:05.4]} 54. Qc1+
{[%clk 0:00:03.2]} 54... Kg6 {[%clk 0:00:05.8]} 55. Qc2+ {[%clk 0:00:03.9]}
55... Kh6 {[%clk 0:00:06.3]} 56. Qc6 {[%clk 0:00:04.8]} 56... Kg6 {[%clk
0:00:06.6]} 57. Kh2 {[%clk 0:00:05]} 57... Kg7 {[%clk 0:00:06]} 58. Kg1 {[%clk
0:00:05.4]} 58... Kg6 {[%clk 0:00:06.5]} 59. Kf2 {[%clk 0:00:06.1]} 59... Re7
{[%clk 0:00:06.5]} 60. Kg3 {[%clk 0:00:06.4]} 60... Kh6 {[%clk 0:00:06.3]} 61.
Kh4 {[%clk 0:00:06.8]} 61... Kg6 {[%clk 0:00:06.3]} 62. Qc2+ {[%clk 0:00:06.8]}
62... Kg7 {[%clk 0:00:06.2]} 63. Kxh5 {[%clk 0:00:06.2]} 63... Re5+ {[%clk
0:00:06.4]} 64. Kh4 {[%clk 0:00:06.2]} 64... Rb5 {[%clk 0:00:03.7]} 65. g4
{[%clk 0:00:04.1]} 65... R5xb6 {[%clk 0:00:04]} 66. Kh5 {[%clk 0:00:04.4]} 66...
Rb5+ {[%clk 0:00:04.3]} 67. Kh4 {[%clk 0:00:05.1]} 67... Rb3 {[%clk 0:00:03.9]}
68. Qc6 {[%clk 0:00:05.1]} 68... R3b5 {[%clk 0:00:03.8]} 69. Kg3 {[%clk
0:00:04.9]} 69... Rb3+ {[%clk 0:00:04.2]} 70. Kh4 {[%clk 0:00:05.5]} 70... R3b5
{[%clk 0:00:04.5]} 71. Qd6 {[%clk 0:00:05.6]} 71... Rf7 {[%clk 0:00:03.5]} 72.
Qe6 {[%clk 0:00:05.6]} 72... Rfb7 {[%clk 0:00:04]} 73. Qe4 {[%clk 0:00:05.4]}
73... R5b6 {[%clk 0:00:04.3]} 74. Qd4 {[%clk 0:00:05.7]} 74... Rb5 {[%clk
0:00:04.7]} 75. Qd3 {[%clk 0:00:06]} 75... Rb4 {[%clk 0:00:05.2]} 76. Qc3 {[%clk
0:00:06.3]} 76... R4b5 {[%clk 0:00:05.6]} 77. Qa1 {[%clk 0:00:06.3]} 77... Kf7
{[%clk 0:00:06.1]} 78. Qa2+ {[%clk 0:00:05.7]} 78... Kg7 {[%clk 0:00:06.7]} 79.
Qa1 {[%clk 0:00:06.3]} 79... Kf7 {[%clk 0:00:07.1]} 80. Qa8 {[%clk 0:00:06.9]}
80... Kg7 {[%clk 0:00:07.5]} 81. Qe8 {[%clk 0:00:07]} 81... R5b6 {[%clk
0:00:07.2]} 82. Kg3 {[%clk 0:00:06]} 82... Rb5 {[%clk 0:00:07.6]} 83. Qe2 {[%clk
0:00:05.5]} 83... Rb2 {[%clk 0:00:07.4]} 84. Qe6 {[%clk 0:00:05]} 84... R2b3+
{[%clk 0:00:08.3]} 85. Kh4 {[%clk 0:00:05.4]} 85... R3b5 {[%clk 0:00:08.4]} 86.
Qe3 {[%clk 0:00:05.1]} 86... Rb3 {[%clk 0:00:08.5]} 87. Qd4 {[%clk 0:00:05.2]}
87... R3b4 {[%clk 0:00:08.8]} 88. Qc3 {[%clk 0:00:05.1]} 88... R4b5 {[%clk
0:00:09.2]} 89. Qa1 {[%clk 0:00:05.1]} 1/2-1/2

[Event "*** Titled Tuesday Blitz"]
[Site "Chess.com"]
[Date "2020.11.03"]
[Round "10"]
[White "davidkalashian"]
[Black "Oglob71"]
[Result "1-0"]
[WhiteElo "2609"]
[BlackElo "2473"]
[TimeControl "180+1"]
[EndTime "12:02:55 PST"]
[Termination "davidkalashian won by resignation"]

1. d4 {[%clk 0:02:59.4]} 1... c5 {[%clk 0:03:00.8]} 2. e4 {[%clk 0:02:54.7]}
2... cxd4 {[%clk 0:02:59.7]} 3. c3 {[%clk 0:02:55]} 3... Nf6 {[%clk 0:02:58.4]}
4. e5 {[%clk 0:02:54]} 4... Nd5 {[%clk 0:02:57.7]} 5. Nf3 {[%clk 0:02:54.4]}
5... e6 {[%clk 0:02:57.5]} 6. Bc4 {[%clk 0:02:53.4]} 6... Nb6 {[%clk 0:02:56.4]}
7. Bb3 {[%clk 0:02:53.5]} 7... d6 {[%clk 0:02:56.7]} 8. cxd4 {[%clk 0:02:44.8]}
8... dxe5 {[%clk 0:02:54.7]} 9. Nxe5 {[%clk 0:02:45.7]} 9... N8d7 {[%clk
0:02:53.7]} 10. O-O {[%clk 0:02:37.3]} 10... Nxe5 {[%clk 0:02:52]} 11. dxe5
{[%clk 0:02:38.2]} 11... Qxd1 {[%clk 0:02:51.8]} 12. Rxd1 {[%clk 0:02:34.9]}
12... Bd7 {[%clk 0:02:52.3]} 13. Nc3 {[%clk 0:02:27.7]} 13... O-O-O {[%clk
0:02:51.9]} 14. a4 {[%clk 0:02:22.4]} 14... Bc6 {[%clk 0:02:43.5]} 15. Rxd8+
{[%clk 0:02:03.9]} 15... Kxd8 {[%clk 0:02:43.1]} 16. Be3 {[%clk 0:02:03.7]}
16... Nd7 {[%clk 0:02:35.1]} 17. Bxa7 {[%clk 0:01:41.6]} 17... Nxe5 {[%clk
0:02:34.7]} 18. Nb5 {[%clk 0:01:41.5]} 18... Nd7 {[%clk 0:02:21.5]} 19. Rd1
{[%clk 0:01:38]} 19... Kc8 {[%clk 0:02:20.5]} 20. Be3 {[%clk 0:01:28]} 20... Nc5
{[%clk 0:02:17.3]} 21. Na7+ {[%clk 0:00:51]} 21... Kc7 {[%clk 0:02:12]} 22. Bf4+
{[%clk 0:00:49.1]} 22... Kb6 {[%clk 0:02:11.6]} 23. Nc8+ {[%clk 0:00:48.7]}
23... Ka5 {[%clk 0:02:10.2]} 24. Bd2+ {[%clk 0:00:32.7]} 24... Ka6 {[%clk
0:02:07.5]} 25. Bc4+ {[%clk 0:00:31]} 25... b5 {[%clk 0:02:06.7]} 26. axb5+
{[%clk 0:00:26.6]} 26... Bxb5 {[%clk 0:02:06.9]} 27. Ra1+ {[%clk 0:00:24]} 27...
Kb7 {[%clk 0:02:07]} 28. Bxb5 {[%clk 0:00:22.7]} 28... Kxc8 {[%clk 0:02:07.1]}
29. Ra8+ {[%clk 0:00:15.1]} 29... Kb7 {[%clk 0:02:06.3]} 30. Re8 {[%clk
0:00:15.6]} 30... Kb6 {[%clk 0:02:04.8]} 31. Bf1 {[%clk 0:00:13.8]} 31... Kc6
{[%clk 0:01:39.8]} 32. Bb4 {[%clk 0:00:11.7]} 32... g6 {[%clk 0:01:29.3]} 33.
Bc3 {[%clk 0:00:10.2]} 33... Rg8 {[%clk 0:01:26]} 34. b4 {[%clk 0:00:10.7]}
34... Ne4 {[%clk 0:01:22.2]} 35. Be5 {[%clk 0:00:08.1]} 35... Kd7 {[%clk
0:01:20.8]} 36. Ra8 {[%clk 0:00:07.3]} 36... f6 {[%clk 0:01:17.7]} 37. Bb5+
{[%clk 0:00:06.8]} 37... Ke7 {[%clk 0:01:17.7]} 38. Ra7+ {[%clk 0:00:05.7]}
38... Kd8 {[%clk 0:01:17.4]} 39. Bc7+ {[%clk 0:00:04.7]} 39... Kc8 {[%clk
0:01:17.1]} 40. Ba6+ {[%clk 0:00:02.7]} 40... Kd7 {[%clk 0:01:17.3]} 41. Bg3+
{[%clk 0:00:02.5]} 41... Kc6 {[%clk 0:01:16.8]} 42. b5+ {[%clk 0:00:01.8]} 42...
Kb6 {[%clk 0:01:15.6]} 43. Rb7+ {[%clk 0:00:02.2]} 43... Ka5 {[%clk 0:01:13.7]}
44. f3 {[%clk 0:00:03.1]} 44... Bc5+ {[%clk 0:01:12.3]} 45. Kf1 {[%clk
0:00:02.5]} 45... Nd2+ {[%clk 0:01:11.3]} 46. Ke2 {[%clk 0:00:01.4]} 46... Nc4
{[%clk 0:01:11.5]} 47. Be1+ {[%clk 0:00:02]} 47... Ka4 {[%clk 0:01:11.8]} 48.
Rc7 {[%clk 0:00:02.2]} 48... Nd6 {[%clk 0:00:53.1]} 49. Rxc5 {[%clk 0:00:02.2]}
49... Rb8 {[%clk 0:00:51.2]} 50. Rc6 {[%clk 0:00:02.3]} 50... Nxb5 {[%clk
0:00:50.5]} 51. Bxb5+ {[%clk 0:00:03.2]} 51... Kxb5 {[%clk 0:00:50]} 52. Rxe6
{[%clk 0:00:04.1]} 52... Rf8 {[%clk 0:00:49.6]} 53. Bd2 {[%clk 0:00:04.3]} 53...
Kc5 {[%clk 0:00:48.5]} 54. Re3 {[%clk 0:00:05.2]} 54... Kd5 {[%clk 0:00:48.3]}
55. Rc3 {[%clk 0:00:06.1]} 55... Re8+ {[%clk 0:00:47.2]} 56. Re3 {[%clk
0:00:05.8]} 56... Ra8 {[%clk 0:00:46.3]} 57. Rd3+ {[%clk 0:00:06.7]} 57... Ke6
{[%clk 0:00:46.2]} 58. h3 {[%clk 0:00:07.6]} 58... h5 {[%clk 0:00:45.5]} 59.
Re3+ {[%clk 0:00:08.5]} 59... Kf7 {[%clk 0:00:45.4]} 60. Kf2 {[%clk 0:00:09.4]}
60... g5 {[%clk 0:00:45.6]} 61. Re2 {[%clk 0:00:10.3]} 61... h4 {[%clk
0:00:45.6]} 62. Be3 {[%clk 0:00:08.8]} 62... Ra3 {[%clk 0:00:44.4]} 63. Rd2
{[%clk 0:00:09.7]} 63... Kg6 {[%clk 0:00:44]} 64. Rc2 {[%clk 0:00:09.6]} 64...
Rb3 {[%clk 0:00:43.8]} 65. Rd2 {[%clk 0:00:09.5]} 65... Ra3 {[%clk 0:00:43.8]}
66. Rd6 {[%clk 0:00:09.8]} 66... Ra2+ {[%clk 0:00:43.6]} 67. Bd2 {[%clk
0:00:10.4]} 67... Kf5 {[%clk 0:00:40]} 68. Ke3 {[%clk 0:00:08.5]} 68... Ke5
{[%clk 0:00:40]} 69. Rd3 {[%clk 0:00:08.6]} 69... f5 {[%clk 0:00:38.6]} 70. Bc3+
{[%clk 0:00:08.3]} 70... Ke6 {[%clk 0:00:38.9]} 71. Rd2 {[%clk 0:00:07]} 71...
Ra3 {[%clk 0:00:38.7]} 72. Kd3 {[%clk 0:00:07.3]} 72... Kd5 {[%clk 0:00:34.4]}
73. Re2 {[%clk 0:00:08.2]} 73... Kd6 {[%clk 0:00:31.1]} 74. Kc4 {[%clk
0:00:07.7]} 74... Ra4+ {[%clk 0:00:29.8]} 75. Bb4+ {[%clk 0:00:08.2]} 75... Kd7
{[%clk 0:00:30.1]} 76. Re7+ {[%clk 0:00:07.1]} 76... Kc6 {[%clk 0:00:29.1]} 77.
Re6+ {[%clk 0:00:06.7]} 77... Kd7 {[%clk 0:00:29.4]} 78. Re7+ {[%clk 0:00:06.8]}
78... Kc6 {[%clk 0:00:28.7]} 79. Re2 {[%clk 0:00:06.6]} 79... Ra1 {[%clk
0:00:27.3]} 80. Re5 {[%clk 0:00:05.7]} 80... Rg1 {[%clk 0:00:26.7]} 81. Re6+
{[%clk 0:00:04.4]} 81... Kd7 {[%clk 0:00:25.5]} 82. Re2 {[%clk 0:00:05.3]} 82...
Kc6 {[%clk 0:00:21.7]} 83. Bc3 {[%clk 0:00:04.9]} 83... Kd6 {[%clk 0:00:19]} 84.
Bd4 {[%clk 0:00:04.6]} 84... Rc1+ {[%clk 0:00:17.5]} 85. Kb3 {[%clk 0:00:04.1]}
85... Rb1+ {[%clk 0:00:17.2]} 86. Kc2 {[%clk 0:00:03.4]} 86... Rf1 {[%clk
0:00:17.4]} 87. Bf6 {[%clk 0:00:03]} 87... g4 {[%clk 0:00:16.4]} 88. fxg4 {[%clk
0:00:02.4]} 88... fxg4 {[%clk 0:00:16.4]} 89. Bxh4 {[%clk 0:00:02.9]} 89... gxh3
{[%clk 0:00:15.5]} 90. gxh3 {[%clk 0:00:03.8]} 90... Rh1 {[%clk 0:00:15.7]} 91.
Bg3+ {[%clk 0:00:03.6]} 91... Kd5 {[%clk 0:00:15.9]} 92. h4 {[%clk 0:00:04.5]}
92... Kd4 {[%clk 0:00:15.4]} 93. Bf2+ {[%clk 0:00:04.1]} 93... Kc4 {[%clk
0:00:14.5]} 94. Kd2 {[%clk 0:00:05]} 94... Kd5 {[%clk 0:00:14.3]} 95. Ke3 {[%clk
0:00:04.8]} 95... Rh3+ {[%clk 0:00:14.6]} 96. Kf4 {[%clk 0:00:04.3]} 96... Ra3
{[%clk 0:00:14.9]} 97. Kg4 {[%clk 0:00:03.9]} 97... Ra4+ {[%clk 0:00:14.6]} 98.
Kg5 {[%clk 0:00:04.2]} 98... Ra5 {[%clk 0:00:14]} 99. Bg3 {[%clk 0:00:04.3]}
99... Kc4+ {[%clk 0:00:14.3]} 100. Kg4 {[%clk 0:00:05.2]} 100... Kd3 {[%clk
0:00:13]} 101. Rf2 {[%clk 0:00:06.1]} 101... Ra4+ {[%clk 0:00:12.8]} 102. Rf4
{[%clk 0:00:07]} 102... Ra7 {[%clk 0:00:12.7]} 103. h5 {[%clk 0:00:07.9]} 103...
Rg7+ {[%clk 0:00:12.5]} 104. Kh4 {[%clk 0:00:08.8]} 104... Ke3 {[%clk
0:00:12.8]} 105. Rg4 {[%clk 0:00:09.2]} 105... Rh7 {[%clk 0:00:12.5]} 106. Kg5
{[%clk 0:00:08.3]} 106... Kf3 {[%clk 0:00:12.5]} 107. Be5 {[%clk 0:00:06.1]}
107... Rf7 {[%clk 0:00:10.8]} 108. Rf4+ {[%clk 0:00:05.7]} 108... Rxf4 {[%clk
0:00:10.9]} 109. Bxf4 {[%clk 0:00:06.6]} 109... Ke4 {[%clk 0:00:11.3]} 110. h6
{[%clk 0:00:07.3]} 110... Kd5 {[%clk 0:00:11.8]} 111. h7 {[%clk 0:00:08.2]} 1-0

[Event "*** Titled Tuesday Blitz"]
[Site "Chess.com"]
[Date "2020.11.03"]
[Round "11"]
[White "Beca95"]
[Black "alexrustemov"]
[Result "0-1"]
[WhiteElo "2935"]
[BlackElo "2713"]
[TimeControl "180+1"]
[EndTime "12:04:40 PST"]
[Termination "alexrustemov won by resignation"]

1. d4 {[%clk 0:03:00.9]} 1... d5 {[%clk 0:02:59.6]} 2. c4 {[%clk 0:03:01.5]}
2... e6 {[%clk 0:02:59.8]} 3. Nc3 {[%clk 0:03:02.2]} 3... Be7 {[%clk 0:03:00.2]}
4. Nf3 {[%clk 0:03:02.8]} 4... Nf6 {[%clk 0:03:00.2]} 5. Bg5 {[%clk 0:03:03.5]}
5... O-O {[%clk 0:02:59.6]} 6. e3 {[%clk 0:03:03]} 6... h6 {[%clk 0:02:59.7]} 7.
Bxf6 {[%clk 0:03:02.7]} 7... Bxf6 {[%clk 0:03:00.4]} 8. Rc1 {[%clk 0:03:03.4]}
8... c6 {[%clk 0:03:00.9]} 9. h4 {[%clk 0:03:03.7]} 9... g6 {[%clk 0:02:58.4]}
10. g4 {[%clk 0:03:03.9]} 10... Bg7 {[%clk 0:02:58.1]} 11. g5 {[%clk 0:03:04.3]}
11... h5 {[%clk 0:02:58.2]} 12. Bd3 {[%clk 0:03:05]} 12... Nd7 {[%clk
0:02:56.8]} 13. cxd5 {[%clk 0:03:04.9]} 13... exd5 {[%clk 0:02:53.6]} 14. Kd2
{[%clk 0:03:04.9]} 14... Nb6 {[%clk 0:02:46.3]} 15. Kc2 {[%clk 0:03:05.2]} 15...
Bg4 {[%clk 0:02:45.8]} 16. Rg1 {[%clk 0:03:04.8]} 16... Nc4 {[%clk 0:02:38]} 17.
Kb1 {[%clk 0:02:52]} 17... Bxf3 {[%clk 0:02:36.2]} 0-1

[Event "*** Titled Tuesday Blitz"]
[Site "Chess.com"]
[Date "2020.11.03"]
[Round "11"]
[White "Zhigalko_Sergei"]
[Black "chito89"]
[Result "1-0"]
[WhiteElo "2926"]
[BlackElo "2804"]
[TimeControl "180+1"]
[EndTime "12:05:53 PST"]
[Termination "Zhigalko_Sergei won by resignation"]

1. e4 {[%clk 0:03:00.9]} 1... e5 {[%clk 0:02:57.3]} 2. Nf3 {[%clk 0:03:01.2]}
2... Nc6 {[%clk 0:02:57.5]} 3. Bb5 {[%clk 0:03:01.7]} 3... a6 {[%clk 0:02:57.4]}
4. Ba4 {[%clk 0:03:02.3]} 4... Nf6 {[%clk 0:02:57.9]} 5. O-O {[%clk 0:03:02.7]}
5... b5 {[%clk 0:02:55.4]} 6. Bb3 {[%clk 0:03:02.8]} 6... Bb7 {[%clk 0:02:55.9]}
7. d3 {[%clk 0:03:03.1]} 7... Ke7 {[%clk 0:02:55.6]} 8. a4 {[%clk 0:02:55.9]}
8... Ke8 {[%clk 0:02:52]} 9. axb5 {[%clk 0:02:39.8]} 9... axb5 {[%clk
0:02:52.9]} 10. Rxa8 {[%clk 0:02:40.4]} 10... Bxa8 {[%clk 0:02:44.2]} 11. Nc3
{[%clk 0:02:34.1]} 11... b4 {[%clk 0:02:44.3]} 12. Ng5 {[%clk 0:02:24.8]} 12...
bxc3 {[%clk 0:02:29.9]} 13. Nxf7 {[%clk 0:02:25]} 13... Qb8 {[%clk 0:02:30.8]}
14. Nxh8 {[%clk 0:02:23.6]} 14... Nd4 {[%clk 0:02:31.4]} 15. Bf7+ {[%clk
0:02:23.2]} 15... Ke7 {[%clk 0:02:24.8]} 16. bxc3 {[%clk 0:02:24.1]} 16... Nb5
{[%clk 0:02:24.7]} 17. f4 {[%clk 0:01:55.8]} 17... Nxc3 {[%clk 0:02:21.2]} 18.
Qe1 {[%clk 0:01:55.4]} 1-0

[Event "*** Titled Tuesday Blitz"]
[Site "Chess.com"]
[Date "2020.11.03"]
[Round "11"]
[White "Omk124"]
[Black "Rakhimzhan_Alen"]
[Result "0-1"]
[WhiteElo "2420"]
[BlackElo "2603"]
[TimeControl "180+1"]
[EndTime "12:05:59 PST"]
[Termination "Rakhimzhan_Alen won by resignation"]

1. e4 {[%clk 0:02:52.9]} 1... e5 {[%clk 0:02:57.9]} 2. Nf3 {[%clk 0:02:51.3]}
2... Nc6 {[%clk 0:02:58.2]} 3. Bc4 {[%clk 0:02:50.4]} 3... Bc5 {[%clk
0:02:57.6]} 4. c3 {[%clk 0:02:50.7]} 4... Nf6 {[%clk 0:02:57.3]} 5. d3 {[%clk
0:02:51.3]} 5... d6 {[%clk 0:02:57]} 6. b4 {[%clk 0:02:51]} 6... Bb6 {[%clk
0:02:56.5]} 7. a4 {[%clk 0:02:51.7]} 7... a5 {[%clk 0:02:55.2]} 8. b5 {[%clk
0:02:51.9]} 8... Ne7 {[%clk 0:02:55.8]} 9. O-O {[%clk 0:02:52.4]} 9... O-O
{[%clk 0:02:55.9]} 10. Ba3 {[%clk 0:02:52.6]} 10... Ng6 {[%clk 0:02:54.5]} 11.
Nbd2 {[%clk 0:02:53.2]} 11... h6 {[%clk 0:02:54.2]} 12. Re1 {[%clk 0:02:53.6]}
12... Be6 {[%clk 0:02:53.6]} 13. Qb3 {[%clk 0:02:53.2]} 13... Qd7 {[%clk
0:02:47.5]} 14. d4 {[%clk 0:02:51.2]} 14... Rfe8 {[%clk 0:02:39.9]} 15. Rad1
{[%clk 0:02:50.4]} 15... exd4 {[%clk 0:02:37]} 16. Nxd4 {[%clk 0:02:47.9]} 16...
Bxd4 {[%clk 0:02:30.9]} 17. cxd4 {[%clk 0:02:48.8]} 17... d5 {[%clk 0:02:29.1]}
18. exd5 {[%clk 0:02:46.9]} 18... Bxd5 {[%clk 0:02:29.9]} 19. Qd3 {[%clk
0:02:40.7]} 19... Nf4 {[%clk 0:02:26]} 20. Qg3 {[%clk 0:02:39.6]} 20... N6h5
{[%clk 0:02:17.4]} 21. Qh4 {[%clk 0:02:39.3]} 21... g5 {[%clk 0:02:12.8]} 22.
Rxe8+ {[%clk 0:02:34.8]} 22... Rxe8 {[%clk 0:02:09.2]} 0-1

[Event "*** Titled Tuesday Blitz"]
[Site "Chess.com"]
[Date "2020.11.03"]
[Round "11"]
[White "GMKrikor"]
[Black "AliKa2810"]
[Result "1-0"]
[WhiteElo "2758"]
[BlackElo "2562"]
[TimeControl "180+1"]
[EndTime "12:06:16 PST"]
[Termination "GMKrikor won by resignation"]

1. e4 {[%clk 0:03:00.9]} 1... d6 {[%clk 0:02:58]} 2. d4 {[%clk 0:03:00.3]} 2...
g6 {[%clk 0:02:55.9]} 3. Nc3 {[%clk 0:02:59.3]} 3... Bg7 {[%clk 0:02:56.5]} 4.
Be3 {[%clk 0:02:56.9]} 4... a6 {[%clk 0:02:56.8]} 5. h4 {[%clk 0:02:56.7]} 5...
h5 {[%clk 0:02:54.4]} 6. f3 {[%clk 0:02:56.7]} 6... b5 {[%clk 0:02:54.5]} 7. Qd2
{[%clk 0:02:57.1]} 7... Bb7 {[%clk 0:02:52.7]} 8. Nh3 {[%clk 0:02:57.4]} 8...
Nd7 {[%clk 0:02:53]} 9. Ng5 {[%clk 0:02:57.7]} 9... c5 {[%clk 0:02:50]} 10. a4
{[%clk 0:02:29.3]} 10... b4 {[%clk 0:02:48.9]} 11. Bc4 {[%clk 0:02:29.2]} 11...
e6 {[%clk 0:02:40.3]} 12. Ne2 {[%clk 0:02:28.2]} 12... Ne7 {[%clk 0:02:25.9]}
13. Bxe6 {[%clk 0:02:25.6]} 13... fxe6 {[%clk 0:02:14.8]} 14. Nxe6 {[%clk
0:02:26.5]} 14... Qb6 {[%clk 0:02:14]} 15. Nxg7+ {[%clk 0:02:25.9]} 15... Kf7
{[%clk 0:02:14.5]} 16. dxc5 {[%clk 0:02:12.7]} 16... Nxc5 {[%clk 0:02:14.2]} 17.
Bd4 {[%clk 0:02:01.5]} 17... Rh7 {[%clk 0:02:13.2]} 18. Qg5 {[%clk 0:01:53]}
18... Rxg7 {[%clk 0:01:58]} 19. Bxg7 {[%clk 0:01:50.9]} 1-0

[Event "*** Titled Tuesday Blitz"]
[Site "Chess.com"]
[Date "2020.11.03"]
[Round "11"]
[White "UB_TheQueen"]
[Black "Evachess2006"]
[Result "1-0"]
[WhiteElo "2060"]
[BlackElo "1630"]
[TimeControl "180+1"]
[EndTime "12:06:18 PST"]
[Termination "UB_TheQueen won by resignation"]

1. e4 {[%clk 0:02:48.8]} 1... e5 {[%clk 0:02:59]} 2. Nf3 {[%clk 0:02:48.2]} 2...
Nc6 {[%clk 0:02:59.4]} 3. Bc4 {[%clk 0:02:48.1]} 3... Bc5 {[%clk 0:02:52.3]} 4.
b4 {[%clk 0:02:47]} 4... Bxb4 {[%clk 0:02:46.5]} 5. c3 {[%clk 0:02:47.3]} 5...
Be7 {[%clk 0:02:24.3]} 6. d4 {[%clk 0:02:47.1]} 6... d6 {[%clk 0:02:08.2]} 7.
Qb3 {[%clk 0:02:45.7]} 7... Na5 {[%clk 0:01:37.5]} 8. Bxf7+ {[%clk 0:02:45]}
8... Kf8 {[%clk 0:01:33.7]} 9. Qa4 {[%clk 0:02:45.9]} 9... Kxf7 {[%clk
0:01:27.1]} 10. Qxa5 {[%clk 0:02:45.4]} 10... Nf6 {[%clk 0:01:16.4]} 11. dxe5
{[%clk 0:02:44]} 11... Nxe4 {[%clk 0:01:15.5]} 12. Qd5+ {[%clk 0:02:40.7]} 12...
Be6 {[%clk 0:00:56.2]} 13. Qxe4 {[%clk 0:02:39.3]} 1-0

[Event "*** Titled Tuesday Blitz"]
[Site "Chess.com"]
[Date "2020.11.03"]
[Round "11"]
[White "Sebastian"]
[Black "Kildepiotr"]
[Result "1-0"]
[WhiteElo "2885"]
[BlackElo "2680"]
[TimeControl "180+1"]
[EndTime "12:06:32 PST"]
[Termination "Sebastian won by resignation"]

1. d4 {[%clk 0:03:00.9]} 1... c5 {[%clk 0:02:59.4]} 2. d5 {[%clk 0:03:00.9]}
2... e5 {[%clk 0:02:59.5]} 3. Nc3 {[%clk 0:02:59.8]} 3... d6 {[%clk 0:03:00]} 4.
e4 {[%clk 0:02:59.8]} 4... Be7 {[%clk 0:03:00.5]} 5. f4 {[%clk 0:02:53.3]} 5...
exf4 {[%clk 0:02:59.9]} 6. Bxf4 {[%clk 0:02:53.1]} 6... Bg5 {[%clk 0:02:59.5]}
7. Qd2 {[%clk 0:02:48.7]} 7... Bxf4 {[%clk 0:02:59.2]} 8. Qxf4 {[%clk
0:02:49.3]} 8... Qf6 {[%clk 0:02:59.7]} 9. Qg3 {[%clk 0:02:40]} 9... Nd7 {[%clk
0:02:58.4]} 10. Bb5 {[%clk 0:02:36.5]} 10... Ne7 {[%clk 0:02:55.1]} 11. Nf3
{[%clk 0:02:35]} 11... Ng6 {[%clk 0:02:53.8]} 12. O-O {[%clk 0:02:26.9]} 12...
O-O {[%clk 0:02:53.4]} 13. Bxd7 {[%clk 0:02:25.2]} 13... Bxd7 {[%clk 0:02:53.2]}
14. Rae1 {[%clk 0:02:24]} 14... Ne5 {[%clk 0:02:43.6]} 15. Nxe5 {[%clk
0:02:13.5]} 15... Qxe5 {[%clk 0:02:43.4]} 16. Qxe5 {[%clk 0:02:14.1]} 16... dxe5
{[%clk 0:02:44.3]} 17. a4 {[%clk 0:02:13.7]} 17... b6 {[%clk 0:02:44.1]} 18. Kf2
{[%clk 0:02:11.8]} 18... a6 {[%clk 0:02:41.6]} 19. Ke3 {[%clk 0:02:08.6]} 19...
b5 {[%clk 0:02:40.2]} 20. axb5 {[%clk 0:02:08]} 20... axb5 {[%clk 0:02:41.1]}
21. Ra1 {[%clk 0:02:07.6]} 21... b4 {[%clk 0:02:39.5]} 22. Ne2 {[%clk
0:02:06.9]} 22... Bb5 {[%clk 0:02:37.9]} 23. Rfd1 {[%clk 0:02:06]} 23... Bxe2
{[%clk 0:02:33.1]} 24. Kxe2 {[%clk 0:02:06]} 24... Rfd8 {[%clk 0:02:23.7]} 25.
Kd3 {[%clk 0:02:02.1]} 25... f5 {[%clk 0:02:15.6]} 26. Rxa8 {[%clk 0:02:00.9]}
26... fxe4+ {[%clk 0:02:15.4]} 27. Kxe4 {[%clk 0:02:00.4]} 27... Rxa8 {[%clk
0:02:16]} 28. d6 {[%clk 0:01:55.5]} 28... Kf7 {[%clk 0:02:15]} 29. Kxe5 {[%clk
0:01:51.4]} 29... c4 {[%clk 0:02:14]} 30. d7 {[%clk 0:01:49.8]} 30... Ke7 {[%clk
0:02:11.7]} 31. d8=Q+ {[%clk 0:01:49.2]} 31... Rxd8 {[%clk 0:02:11.3]} 32. Rxd8
{[%clk 0:01:49.8]} 32... Kxd8 {[%clk 0:02:12.2]} 33. Kd4 {[%clk 0:01:49.8]} 1-0